[Event "44th Chess Olympiad Women 2022"]
[Site "Chennai"]
[Date "2022.08.02"]
[Round "5.20"]
[White "Brunello, Marina"]
[Black "Nilssen, Ellen Fredericia"]
[Result "0-1"]
[ECO "B51"]
[WhiteElo "2341"]
[BlackElo "2142"]
[Annotator "RC"]
[PlyCount "138"]
[EventDate "2022.07.29"]
[EventType "team-tourn"]
[EventCountry "IND"]
[SourceTitle "playchess.com"]
[Source "ChessBase"]
[SourceQuality "1"]
[WhiteTeam "Italy"]
[BlackTeam "Denmark"]
[WhiteTeamCountry "ITA"]
[BlackTeamCountry "DEN"]
[TimeControl "40/5400+30:1800+30"]

1. e4 {[%emt 0:00:04]} c5 {[%emt 0:00:21]} 2. Nf3 {[%emt 0:00:21]} d6 {[%emt 0:00:13]} 3. Bb5+ {[%emt 0:00:07]} Nd7 {[%emt 0:00:14]} 4. Ba4 {[%emt 0:00:24]} a6 {[%emt 0:05:01]} 5. c4 {[%emt 0:00:12]} Ngf6 {[%emt 0:00:24]} 6. Nc3 {[%emt 0:00:12]} g6 {[%emt 0:00:16]} 7. O-O {[%emt 0:01:23]} Bg7 {[%emt 0:00:35]} 8. h3 {[%emt 0:00:15]} O-O {[%emt 0:02:23]} 9. d3 {[%emt 0:00:03]} e5 {[%emt 0:04:05]} 10. Be3 {[%emt 0:05:17]} Ne8 {[%emt 0:02:46]} 11. Qd2 {[%emt 0:08:32]} f5 {[%emt 0:05:28]} 12. exf5 {[%emt 0:00:12]} gxf5 {[%emt 0:00:25]} 13. Bg5 {[%emt 0:00:56]} Bf6 {[%emt 0:04:16]} 14. Rae1 {[%emt 0:10:57]} Nc7 {[%emt 0:11:36]} 15. Bh6 {[%emt 0:11:12]} Bg7 {[%emt 0:00:36]} 16. Nh2 {[%emt 0:00:14]} Ne6 {[%emt 0:03:53]} 17. Bxg7 {[%emt 0:05:34]} Kxg7 {[%emt 0:00:45]} 18. Ne2 {[%emt 0:00:05]} f4 {[%emt 0:03:11]} 19. Nc3 {[%emt 0:05:26]} Nf6 {[%emt 0:03:27]} 20. Bd1 {[%emt 0:01:51]} Rb8 {[%emt 0:07:07]} 21. Ng4 {[%emt 0:05:38]} Nd4 {[%emt 0:03:28]} 22. Nh2 {[%emt 0:05:37]} Bf5 {[%emt 0:03:36]} 23. Nf3 {[%emt 0:01:02]} Kh8 {[%emt 0:03:37]} 24. Kh2 {[%emt 0:03:35]} Qd7 {[%emt 0:02:52]} 25. b3 {[%emt 0:06:53]} Rg8 {[%emt 0:00:44]} 26. Nxd4 {[%emt 0:00:56]} cxd4 {[%emt 0:04:02]} 27. Nb1 {[%emt 0:00:28]} Qf7 {[%emt 0:07:03]} 28. Bf3 {[%emt 0:01:11]} Qg6 {[%emt 0:01:19]} 29. Rd1 {[%emt 0:00:05]} Rg7 {[%emt 0:01:47]} 30. Rg1 {[%emt 0:01:58]} Rbg8 {[%emt 0:00:30]} 31. Qe2 {[%emt 0:00:30]} Qh6 {[%emt 0:00:30]} 32. c5 {[%emt 0:00:30]} Qh4 {[%emt 0:00:30]} 33. Rh1 {[%emt 0:00:30]} dxc5 {[%emt 0:00:30]} 34. Nd2 {[%emt 0:00:30]} Bg4 {[%emt 0:12:42]} 35. Rhf1 {[%emt 0:11:31]} Qh5 {[%emt 0:04:04]} 36. Rg1 {[%emt 0:01:59]} Qh4 {[%emt 0:00:30]} 37. Rgf1 {[%emt 0:00:30]} Qh5 {[%emt 0:00:30]} 38. Rg1 {[%emt 0:00:30]} Nd5 {[%emt 0:00:30]} 39. Bxg4 {[%emt 0:00:30]} Rxg4 {[%emt 0:00:30]} 40. Rde1 {[%emt 0:00:30]} f3 {[%emt 0:00:30]} 41. Qxe5+ {[%emt 0:30:30]} Qxe5+ {[%emt 0:30:30]} 42. Rxe5 {[%emt 0:22:12]} Rxg2+ {[%emt 0:03:18]} 43. Rxg2 {[%emt 0:00:00]} Rxg2+ {[%emt 0:00:00]} 44. Kh1 {[%emt 0:00:00]} Rxf2 {[%emt 0:00:00]} 45. Rxd5 {[%emt 0:00:00]} Rxd2 {[%emt 0:00:00]} 46. Kg1 {[%emt 0:00:00]} Rxa2 {[%emt 0:00:00]} 47. Rxc5 {[%emt 0:00:00]} Rd2 {[%emt 0:00:00]} 48. Rc8+ {[%emt 0:00:00]} Kg7 {[%emt 0:00:00]} 49. Rc7+ {[%emt 0:00:00]} Kg6 {[%emt 0:00:00]} 50. Rxb7 {[%emt 0:00:00]} Kg5 {[%emt 0:00:00]} 51. Rf7 {[%emt 0:00:00]} Rxd3 {[%emt 0:00:00]} 52. Kf2 {[%emt 0:00:00]} Rxb3 {[%emt 0:00:00]} 53. Rxh7 {[%emt 0:00:00]} a5 {[%emt 0:00:00]} 54. Rd7 {[%emt 0:00:00]} Rd3 {[%emt 0:00:00]} 55. Ra7 {[%emt 0:00:00]} a4 {[%emt 0:00:00]} 56. Rxa4 {[%emt 0:00:00]} Kf4 {[%emt 0:00:00]} 57. Ra2 {[%emt 0:00:00]} Rd1 {[%emt 0:00:00]} 58. Rb2 {[%emt 0:00:00]} Rh1 {[%emt 0:00:00]} 59. Rb8 {[%emt 0:00:00]} Rh2+ {[%emt 0:00:00]} 60. Kf1 {[%emt 0:00:00]} d3 {[%emt 0:00:00]} 61. Rf8+ {[%emt 0:00:00]} Ke3 {[%emt 0:00:00]} 62. Re8+ {[%emt 0:00:00]} Kd2 {[%emt 0:00:00]} 63. Rd8 {[%emt 0:00:00]} Kc2 {[%emt 0:00:00]} 64. Rc8+ {[%emt 0:00:00]} Kd1 {[%emt 0:00:00]} 65. Rd8 {[%emt 0:00:00]} d2 {[%emt 0:00:00]} 66. Rc8 {[%emt 0:00:00]} Rxh3 {[%emt 0:00:00]} 67. Kf2 {[%emt 0:00:00]} Rh7 {[%emt 0:01:56]} 68. Kxf3 {[%emt 0:00:00]} Rf7+ {[%emt 0:00:06]} 69. Kg2 {[%emt 0:00:00]} Rf5 {[%emt 0:00:35]} 0-1

[Event "44th Chess Olympiad Women 2022"]
[Site "Chennai"]
[Date "2022.08.02"]
[Round "5.20"]
[White "Guindy, Esmat Susanne"]
[Black "Zimina, Olga"]
[Result "1/2-1/2"]
[ECO "D15"]
[WhiteElo "2097"]
[BlackElo "2340"]
[Annotator "RC"]
[PlyCount "147"]
[EventDate "2022.07.29"]
[EventType "team-tourn"]
[EventCountry "IND"]
[SourceTitle "playchess.com"]
[Source "ChessBase"]
[SourceQuality "1"]
[WhiteTeam "Denmark"]
[BlackTeam "Italy"]
[WhiteTeamCountry "DEN"]
[BlackTeamCountry "ITA"]
[TimeControl "40/5400+30:1800+30"]

1. d4 {[%emt 0:00:03]} d5 {[%emt 0:00:08]} 2. c4 {[%emt 0:00:07]} c6 {[%emt 0:00:08]} 3. Nf3 {[%emt 0:00:18]} Nf6 {[%emt 0:00:06]} 4. Nc3 {[%emt 0:00:23]} a6 {[%emt 0:01:09]} 5. e3 {[%emt 0:07:22]} b5 {[%emt 0:03:22]} 6. cxd5 {[%emt 0:01:15]} cxd5 {[%emt 0:00:07]} 7. Bd3 {[%emt 0:05:30]} e6 {[%emt 0:00:08]} 8. a3 {[%emt 0:04:51]} Nbd7 {[%emt 0:03:03]} 9. O-O {[%emt 0:02:31]} Bb7 {[%emt 0:00:49]} 10. Nd2 {[%emt 0:07:01]} Rc8 {[%emt 0:05:32]} 11. e4 {[%emt 0:06:50]} dxe4 {[%emt 0:05:22]} 12. Ndxe4 {[%emt 0:00:30]} Be7 {[%emt 0:00:33]} 13. Re1 {[%emt 0:05:20]} Nxe4 {[%emt 0:01:27]} 14. Bxe4 {[%emt 0:03:18]} Bxe4 {[%emt 0:01:42]} 15. Nxe4 {[%emt 0:00:52]} Nb6 {[%emt 0:00:23]} 16. Qg4 {[%emt 0:07:49]} g6 {[%emt 0:06:04]} 17. Nc5 {[%emt 0:11:03]} h5 {[%emt 0:21:15]} 18. Qe4 {[%emt 0:01:41]} Qd5 {[%emt 0:08:19]} 19. Qxd5 {[%emt 0:07:01]} Nxd5 {[%emt 0:00:14]} 20. Nxa6 {[%emt 0:02:33]} O-O {[%emt 0:05:56]} 21. Re2 {[%emt 0:04:03]} Rc4 {[%emt 0:04:46]} 22. Be3 {[%emt 0:00:39]} Ra8 {[%emt 0:24:45]} 23. Nc5 {[%emt 0:00:23]} Nxe3 {[%emt 0:02:10]} 24. Rxe3 {[%emt 0:03:46]} Rxd4 {[%emt 0:00:26]} 25. Nb3 {[%emt 0:04:56]} Rc4 {[%emt 0:00:18]} 26. Kf1 {[%emt 0:05:27]} Bf6 {[%emt 0:00:36]} 27. Re2 {[%emt 0:01:01]} Rac8 {[%emt 0:01:29]} 28. Rd1 {[%emt 0:01:46]} Kf8 {[%emt 0:01:21]} 29. g3 {[%emt 0:00:53]} h4 {[%emt 0:00:16]} 30. Kg2 {[%emt 0:00:32]} Ke8 {[%emt 0:00:24]} 31. h3 {[%emt 0:01:25]} Ra8 {[%emt 0:01:30]} 32. Rc1 {[%emt 0:00:50]} hxg3 {[%emt 0:00:45]} 33. fxg3 {[%emt 0:00:27]} Rxc1 {[%emt 0:01:36]} 34. Nxc1 {[%emt 0:00:09]} Rd8 {[%emt 0:00:04]} 35. Rc2 {[%emt 0:00:56]} Rd1 {[%emt 0:00:09]} 36. b3 {[%emt 0:02:08]} Bg5 {[%emt 0:01:10]} 37. Ne2 {[%emt 0:00:15]} Be7 {[%emt 0:00:33]} 38. Nc3 {[%emt 0:01:12]} Rd3 {[%emt 0:00:10]} 39. Nxb5 {[%emt 0:00:26]} Rxb3 {[%emt 0:00:05]} 40. a4 {[%emt 0:00:34]} Rb4 {[%emt 0:00:13]} 41. Rc8+ {[%emt 0:06:18]} Kd7 {[%emt 0:06:13]} 42. Ra8 {[%emt 0:00:32]} Bc5 {[%emt 0:00:34]} 43. h4 {[%emt 0:14:03]} e5 {[%emt 0:02:47]} 44. Nc3 {[%emt 0:00:37]} e4 {[%emt 0:02:26]} 45. Ra5 {[%emt 0:02:59]} Kd6 {[%emt 0:01:08]} 46. Ra6+ {[%emt 0:01:22]} Ke5 {[%emt 0:00:39]} 47. Ne2 {[%emt 0:04:36]} Rb2 {[%emt 0:01:04]} 48. Kf1 {[%emt 0:00:24]} Rb3 {[%emt 0:07:20]} 49. Ra5 {[%emt 0:01:58]} Rf3+ {[%emt 0:01:10]} 50. Ke1 {[%emt 0:00:34]} Kd5 {[%emt 0:00:19]} 51. Kd2 {[%emt 0:03:20]} Kc4 {[%emt 0:00:17]} 52. Ra8 {[%emt 0:00:08]} Bb4+ {[%emt 0:01:20]} 53. Kc2 {[%emt 0:00:19]} Ra3 {[%emt 0:00:30]} 54. Rc8+ {[%emt 0:00:37]} Bc5 {[%emt 0:00:06]} 55. Re8 {[%emt 0:00:48]} f5 {[%emt 0:06:36]} 56. Re6 {[%emt 0:01:01]} Ra2+ {[%emt 0:01:13]} 57. Kd1 {[%emt 0:00:10]} Ra1+ {[%emt 0:00:10]} 58. Kc2 {[%emt 0:00:09]} Ra2+ {[%emt 0:00:31]} 59. Kd1 {[%emt 0:00:05]} Rxa4 {[%emt 0:00:35]} 60. Rxg6 {[%emt 0:00:17]} Kd3 {[%emt 0:00:24]} 61. Nf4+ {[%emt 0:00:49]} Ke3 {[%emt 0:00:41]} 62. h5 {[%emt 0:00:29]} Kf3 {[%emt 0:01:06]} 63. Rg5 {[%emt 0:00:42]} Be3 {[%emt 0:03:02]} 64. Rxf5 {[%emt 0:00:04]} Kxg3 {[%emt 0:00:43]} 65. Ne2+ {[%emt 0:00:29]} Kg4 {[%emt 0:00:03]} 66. Re5 {[%emt 0:01:06]} Ra1+ {[%emt 0:00:06]} 67. Kc2 {[%emt 0:00:21]} Ra2+ {[%emt 0:02:30]} 68. Kd1 {[%emt 0:00:11]} Ra1+ {[%emt 0:01:01]} 69. Kc2 {[%emt 0:00:06]} Kf3 {[%emt 0:00:43]} 70. Nc3 {[%emt 0:00:12]} Rc1+ {[%emt 0:00:51]} 71. Kb2 {[%emt 0:01:34]} Rh1 {[%emt 0:00:31]} 72. Rxe4 {[%emt 0:00:19]} Rxh5 {[%emt 0:00:22]} 73. Kb3 {[%emt 0:00:19]} Rh3 {[%emt 0:00:29]} 74. Rc4 {[%emt 0:00:29]} 1/2-1/2

[Event "44th Chess Olympiad Women 2022"]
[Site "Chennai"]
[Date "2022.08.02"]
[Round "5.20"]
[White "Raccanello, Marianna"]
[Black "Kakulidis, Ellen"]
[Result "1/2-1/2"]
[ECO "C54"]
[WhiteElo "2067"]
[BlackElo "2057"]
[Annotator "NA RC"]
[PlyCount "67"]
[EventDate "2022.07.29"]
[EventType "team-tourn"]
[EventCountry "IND"]
[SourceTitle "playchess.com"]
[Source "ChessBase"]
[SourceQuality "1"]
[WhiteTeam "Italy"]
[BlackTeam "Denmark"]
[WhiteTeamCountry "ITA"]
[BlackTeamCountry "DEN"]
[TimeControl "40/5400+30:1800+30"]

1. e4 {[%emt 0:00:03]} e5 {[%emt 0:00:07]} 2. Nf3 {[%emt 0:00:07]} Nc6 {[%emt 0:00:06]} 3. Bc4 {[%emt 0:00:08]} Bc5 {[%emt 0:00:09]} 4. c3 {[%emt 0:00:21]} Nf6 {[%emt 0:00:10]} 5. d3 {[%emt 0:00:50]} d6 {[%emt 0:00:09]} 6. O-O {[%emt 0:00:51]} a5 {[%emt 0:00:10]} 7. Nbd2 {[%emt 0:01:53]} Ba7 {[%emt 0:02:19]} 8. Re1 {[%emt 0:02:38]} Be6 {[%emt 0:02:42]} 9. Bb5 {[%emt 0:05:36]} O-O {[%emt 0:01:11]} 10. h3 {[%emt 0:02:21]} Ne7 {[%emt 0:14:43]} 11. d4 {[%emt 0:04:39]} Ng6 {[%emt 0:14:23]} 12. Nf1 {[%emt 0:01:05]} c6 {[%emt 0:02:26]} 13. Ba4 {[%emt 0:07:11]} h6 {[%emt 0:10:23]} 14. Ng3 {[%emt 0:01:58]} Qc7 {[%emt 0:08:13]} 15. Bc2 {[%emt 0:07:34]} Rfe8 {[%emt 0:03:47]} 16. Be3 {[%emt 0:03:09]} b5 {[%emt 0:11:50]} 17. Qd2 {[%emt 0:10:34]} Rad8 {[%emt 0:10:17]} 18. Nf5 {[%emt 0:16:28]} d5 {[%emt 0:05:03]} 19. Bxh6 {[%emt 0:15:10]} Nxe4 {[%emt 0:01:27]} 20. Bxe4 {[%emt 0:00:45]} dxe4 {[%emt 0:00:20]} 21. Nxg7 {[%emt 0:02:34]} exf3 {[%emt 0:01:10]} 22. Nxe8 {[%emt 0:03:40]} Rxe8 {[%emt 0:00:11]} 23. Rxe5 {[%emt 0:03:11]} Bb8 {[%emt 0:01:53]} 24. g3 {[%emt 0:03:30]} Qe7 {[%emt 0:04:15]} 25. Re4 {[%emt 0:02:03]} Qf6 {[%emt 0:01:50]} 26. Rae1 {[%emt 0:00:51]} Qf5 {[%emt 0:00:43]} 27. g4 {[%emt 0:00:24]} Qd5 {[%emt 0:00:03]} 28. Qe3 {[%emt 0:02:24]} Qd6 {[%emt 0:00:17]} 29. Re5 {[%emt 0:02:21]} Qd7 {[%emt 0:02:13]} 30. Re4 {[%emt 0:00:38]} Qc7 {[%emt 0:00:31]} 31. Re5 {[%emt 0:00:31]} Qd7 {[%emt 0:02:23]} 32. Re4 {[%emt 0:00:15]} Qc7 {[%emt 0:00:26]} 33. Re5 {[%emt 0:00:03]} Qd7 {[%emt 0:00:21]} 34. Re4 {[%emt 0:00:08]} 1/2-1/2

[Event "44th Chess Olympiad Women 2022"]
[Site "Chennai"]
[Date "2022.08.02"]
[Round "5.20"]
[White "Steffensen, Elena"]
[Black "Cassi, Elisa"]
[Result "1-0"]
[ECO "C84"]
[WhiteElo "2044"]
[BlackElo "1922"]
[Annotator "NA RC"]
[PlyCount "75"]
[EventDate "2022.07.29"]
[EventType "team-tourn"]
[EventCountry "IND"]
[SourceTitle "playchess.com"]
[Source "ChessBase"]
[SourceQuality "1"]
[WhiteTeam "Denmark"]
[BlackTeam "Italy"]
[WhiteTeamCountry "DEN"]
[BlackTeamCountry "ITA"]
[TimeControl "40/5400+30:1800+30"]

1. e4 {[%emt 0:00:02]} e5 {[%emt 0:00:04]} 2. Nf3 {[%emt 0:00:05]} Nc6 {[%emt 0:00:04]} 3. Bb5 {[%emt 0:00:02]} a6 {[%emt 0:00:05]} 4. Ba4 {[%emt 0:00:02]} Nf6 {[%emt 0:00:05]} 5. d4 {[%emt 0:00:06]} exd4 {[%emt 0:00:05]} 6. O-O {[%emt 0:00:05]} Be7 {[%emt 0:00:13]} 7. e5 {[%emt 0:06:54]} Ne4 {[%emt 0:00:07]} 8. Nxd4 {[%emt 0:00:48]} O-O {[%emt 0:00:22]} 9. Nxc6 {[%emt 0:06:52]} dxc6 {[%emt 0:07:48]} 10. c3 {[%emt 0:02:26]} Bc5 {[%emt 0:04:56]} 11. Qxd8 {[%emt 0:10:00]} Rxd8 {[%emt 0:02:31]} 12. Bc2 {[%emt 0:01:53]} Bf5 {[%emt 0:09:46]} 13. Bxe4 {[%emt 0:01:43]} Bxe4 {[%emt 0:00:12]} 14. Nd2 {[%emt 0:00:15]} Bd3 {[%emt 0:04:56]} 15. Re1 {[%emt 0:00:52]} a5 {[%emt 0:07:38]} 16. Nb3 {[%emt 0:00:54]} Be7 {[%emt 0:00:25]} 17. Bf4 {[%emt 0:03:26]} a4 {[%emt 0:09:25]} 18. Nd4 {[%emt 0:03:00]} c5 {[%emt 0:01:28]} 19. Nf3 {[%emt 0:08:13]} Bc4 {[%emt 0:01:41]} 20. Nd2 {[%emt 0:03:14]} Be6 {[%emt 0:01:53]} 21. Ne4 {[%emt 0:01:43]} h6 {[%emt 0:00:29]} 22. Be3 {[%emt 0:00:40]} Ra5 {[%emt 0:10:28]} 23. f4 {[%emt 0:03:38]} Rb5 {[%emt 0:00:29]} 24. Re2 {[%emt 0:00:57]} Bg4 {[%emt 0:05:35]} 25. Rf2 {[%emt 0:03:09]} Rd3 {[%emt 0:02:23]} 26. Re1 {[%emt 0:00:24]} Be6 {[%emt 0:05:59]} 27. f5 {[%emt 0:07:55]} Bd5 {[%emt 0:04:44]} 28. f6 {[%emt 0:06:15]} Bd8 {[%emt 0:00:58]} 29. c4 {[%emt 0:04:39]} Rb4 {[%emt 0:05:35]} 30. Nxc5 {[%emt 0:01:02]} Rxe3 {[%emt 0:03:16]} 31. Rxe3 {[%emt 0:00:05]} Rxc4 {[%emt 0:00:39]} 32. Nd3 {[%emt 0:05:04]} c6 {[%emt 0:01:19]} 33. e6 {[%emt 0:06:13]} Bxe6 {[%emt 0:01:33]} 34. Rxe6 {[%emt 0:00:36]} fxe6 {[%emt 0:00:09]} 35. f7+ {[%emt 0:00:15]} Kf8 {[%emt 0:00:12]} 36. Kf1 {[%emt 0:00:46]} Bf6 {[%emt 0:00:47]} 37. h3 {[%emt 0:00:34]} Kxf7 {[%emt 0:00:20]} 38. Ne5+ {[%emt 0:00:01]} 1-0

[Event "44th Chess Olympiad Women 2022"]
[Site "Chennai"]
[Date "2022.08.02"]
[Round "5.21"]
[White "Unuk, Laura"]
[Black "Machlik, Monika"]
[Result "1-0"]
[ECO "A04"]
[WhiteElo "2340"]
[BlackElo "2111"]
[Annotator "RC"]
[PlyCount "59"]
[EventDate "2022.07.29"]
[EventType "team-tourn"]
[EventCountry "IND"]
[SourceTitle "playchess.com"]
[Source "ChessBase"]
[SourceQuality "1"]
[WhiteTeam "Slovenia"]
[BlackTeam "Norway"]
[WhiteTeamCountry "SLO"]
[BlackTeamCountry "NOR"]
[TimeControl "40/5400+30:1800+30"]

1. e4 {[%emt 0:00:04]} c5 {[%emt 0:05:14]} 2. Nc3 {[%emt 0:00:28]} Nc6 {[%emt 0:01:25]} 3. g3 {[%emt 0:00:42]} g6 {[%emt 0:17:59]} 4. Bg2 {[%emt 0:01:51]} Bg7 {[%emt 0:00:14]} 5. Nf3 {[%emt 0:10:40]} e6 {[%emt 0:23:42]} 6. O-O {[%emt 0:04:44]} Nge7 {[%emt 0:03:19]} 7. Re1 {[%emt 0:01:02]} e5 {[%emt 0:04:07]} 8. d3 {[%emt 0:05:51]} d6 {[%emt 0:03:19]} 9. Nd2 {[%emt 0:01:16]} O-O {[%emt 0:00:29]} 10. Nc4 {[%emt 0:01:22]} a6 {[%emt 0:02:57]} 11. a4 {[%emt 0:03:51]} Be6 {[%emt 0:01:33]} 12. Nd5 {[%emt 0:06:30]} Rb8 {[%emt 0:04:54]} 13. a5 {[%emt 0:07:16]} Nd4 {[%emt 0:04:59]} 14. c3 {[%emt 0:01:56]} Nb5 {[%emt 0:00:49]} 15. f4 {[%emt 0:07:55]} Nc7 {[%emt 0:04:29]} 16. Ncb6 {[%emt 0:01:56]} Nc8 {[%emt 0:05:08]} 17. Be3 {[%emt 0:01:19]} Nxb6 {[%emt 0:01:19]} 18. Nxb6 {[%emt 0:04:02]} Nb5 {[%emt 0:04:16]} 19. fxe5 {[%emt 0:09:00]} Bxe5 {[%emt 0:00:11]} 20. Qd2 {[%emt 0:00:29]} Bg7 {[%emt 0:03:32]} 21. Rf1 {[%emt 0:02:39]} Nc7 {[%emt 0:01:09]} 22. Bg5 {[%emt 0:00:50]} f6 {[%emt 0:00:16]} 23. Bf4 {[%emt 0:00:50]} Qe7 {[%emt 0:00:52]} 24. Rae1 {[%emt 0:00:37]} Qd8 {[%emt 0:02:38]} 25. d4 {[%emt 0:02:11]} cxd4 {[%emt 0:00:07]} 26. Qxd4 {[%emt 0:00:15]} Nb5 {[%emt 0:00:18]} 27. Qd2 {[%emt 0:02:17]} g5 {[%emt 0:02:07]} 28. Be3 {[%emt 0:00:18]} Qc7 {[%emt 0:00:26]} 29. c4 {[%emt 0:00:56]} Na7 {[%emt 0:00:43]} 30. Nd5 {[%emt 0:00:30]} 1-0

[Event "44th Chess Olympiad Women 2022"]
[Site "Chennai"]
[Date "2022.08.02"]
[Round "5.21"]
[White "Vidic, Teja"]
[Black "Stanford, Sheila Barth"]
[Result "1/2-1/2"]
[ECO "B27"]
[WhiteElo "2099"]
[BlackElo "2097"]
[Annotator "NA"]
[PlyCount "73"]
[EventDate "2022.07.29"]
[EventType "team-tourn"]
[EventCountry "IND"]
[SourceTitle "playchess.com"]
[Source "ChessBase"]
[SourceQuality "1"]
[WhiteTeam "Slovenia"]
[BlackTeam "Norway"]
[WhiteTeamCountry "SLO"]
[BlackTeamCountry "NOR"]
[TimeControl "40/5400+30:1800+30"]

1. e4 {[%emt 0:00:04]} c5 {[%emt 0:00:06]} 2. Nf3 {[%emt 0:00:08]} g6 {[%emt 0:00:23]} 3. c3 {[%emt 0:00:08]} d5 {[%emt 0:00:34]} 4. e5 {[%emt 0:02:35]} Bg4 {[%emt 0:00:20]} 5. d4 {[%emt 0:00:32]} Bxf3 {[%emt 0:01:13]} 6. Qxf3 {[%emt 0:00:12]} Nc6 {[%emt 0:01:10]} 7. Bb5 {[%emt 0:04:46]} e6 {[%emt 0:01:28]} 8. O-O {[%emt 0:02:41]} Rc8 {[%emt 0:19:40]} 9. Bf4 {[%emt 0:02:11]} Bg7 {[%emt 0:08:25]} 10. dxc5 {[%emt 0:04:43]} Nge7 {[%emt 0:00:11]} 11. Nd2 {[%emt 0:00:56]} O-O {[%emt 0:00:25]} 12. Rfe1 {[%emt 0:03:53]} a5 {[%emt 0:08:20]} 13. Nb3 {[%emt 0:06:05]} Qc7 {[%emt 0:02:29]} 14. Qe2 {[%emt 0:03:06]} Ra8 {[%emt 0:06:09]} 15. a4 {[%emt 0:03:34]} Nb8 {[%emt 0:01:18]} 16. h4 {[%emt 0:03:16]} Nd7 {[%emt 0:04:54]} 17. Bxd7 {[%emt 0:02:10]} Qxd7 {[%emt 0:00:06]} 18. h5 {[%emt 0:01:17]} Rfb8 {[%emt 0:00:39]} 19. Qd2 {[%emt 0:08:16]} b5 {[%emt 0:03:06]} 20. cxb6 {[%emt 0:01:07]} Rxb6 {[%emt 0:06:28]} 21. Nd4 {[%emt 0:00:21]} Nf5 {[%emt 0:07:02]} 22. Nxf5 {[%emt 0:06:00]} exf5 {[%emt 0:03:15]} 23. b4 {[%emt 0:11:50]} axb4 {[%emt 0:04:23]} 24. cxb4 {[%emt 0:03:39]} Rxa4 {[%emt 0:01:39]} 25. Rxa4 {[%emt 0:00:17]} Qxa4 {[%emt 0:00:03]} 26. Qxd5 {[%emt 0:00:13]} Qxb4 {[%emt 0:08:11]} 27. Rd1 {[%emt 0:01:44]} gxh5 {[%emt 0:05:41]} 28. Be3 {[%emt 0:10:15]} Rb8 {[%emt 0:04:43]} 29. e6 {[%emt 0:00:29]} Qe7 {[%emt 0:00:35]} 30. Qxf5 {[%emt 0:02:56]} Qxe6 {[%emt 0:00:15]} 31. Qxh5 {[%emt 0:00:06]} h6 {[%emt 0:00:47]} 32. Bf4 {[%emt 0:06:29]} Rb2 {[%emt 0:01:10]} 33. Be3 {[%emt 0:02:19]} Qg6 {[%emt 0:00:31]} 34. Qf3 {[%emt 0:01:35]} Rb1 {[%emt 0:00:28]} 35. Rxb1 {[%emt 0:01:00]} Qxb1+ {[%emt 0:00:03]} 36. Kh2 {[%emt 0:00:06]} Qg6 {[%emt 0:00:43]} 37. g3 {[%emt 0:02:17]} 1/2-1/2

[Event "44th Chess Olympiad Women 2022"]
[Site "Chennai"]
[Date "2022.08.02"]
[Round "5.21"]
[White "Machlik, Edit"]
[Black "Urh, Zala"]
[Result "1/2-1/2"]
[ECO "E36"]
[WhiteElo "2084"]
[BlackElo "2321"]
[Annotator "RC"]
[PlyCount "85"]
[EventDate "2022.07.29"]
[EventType "team-tourn"]
[EventCountry "IND"]
[SourceTitle "playchess.com"]
[Source "ChessBase"]
[SourceQuality "1"]
[WhiteTeam "Norway"]
[BlackTeam "Slovenia"]
[WhiteTeamCountry "NOR"]
[BlackTeamCountry "SLO"]
[TimeControl "40/5400+30:1800+30"]

1. d4 {[%emt 0:00:02]} Nf6 {[%emt 0:00:24]} 2. c4 {[%emt 0:00:05]} e6 {[%emt 0:00:00]} 3. Nc3 {[%emt 0:00:06]} Bb4 {[%emt 0:00:15]} 4. Qc2 {[%emt 0:01:11]} O-O {[%emt 0:00:11]} 5. a3 {[%emt 0:00:04]} Bxc3+ {[%emt 0:00:05]} 6. Qxc3 {[%emt 0:00:03]} d5 {[%emt 0:00:12]} 7. Nf3 {[%emt 0:02:45]} dxc4 {[%emt 0:00:30]} 8. Qxc4 {[%emt 0:01:27]} b6 {[%emt 0:00:30]} 9. Bg5 {[%emt 0:01:02]} Ba6 {[%emt 0:01:31]} 10. Qa4 {[%emt 0:01:27]} h6 {[%emt 0:00:53]} 11. Bxf6 {[%emt 0:26:08]} Qxf6 {[%emt 0:05:46]} 12. e3 {[%emt 0:00:07]} Bxf1 {[%emt 0:00:36]} 13. Kxf1 {[%emt 0:04:53]} c5 {[%emt 0:04:33]} 14. Rc1 {[%emt 0:19:58]} Rd8 {[%emt 0:04:50]} 15. Ke2 {[%emt 0:17:07]} cxd4 {[%emt 0:08:49]} 16. Nxd4 {[%emt 0:00:12]} Nd7 {[%emt 0:00:27]} 17. Rhd1 {[%emt 0:01:33]} Nc5 {[%emt 0:02:59]} 18. Qc2 {[%emt 0:05:01]} e5 {[%emt 0:07:31]} 19. Nb3 {[%emt 0:02:35]} Ne6 {[%emt 0:02:32]} 20. Rxd8+ {[%emt 0:03:50]} Rxd8 {[%emt 0:00:35]} 21. Rd1 {[%emt 0:01:46]} Rxd1 {[%emt 0:03:37]} 22. Qxd1 {[%emt 0:00:01]} e4 {[%emt 0:00:18]} 23. Qc2 {[%emt 0:01:07]} Qe5 {[%emt 0:00:40]} 24. Nd2 {[%emt 0:04:04]} f5 {[%emt 0:02:06]} 25. b4 {[%emt 0:01:09]} a5 {[%emt 0:24:23]} 26. h3 {[%emt 0:00:13]} Kf7 {[%emt 0:01:19]} 27. Qc8 {[%emt 0:01:56]} axb4 {[%emt 0:05:37]} 28. axb4 {[%emt 0:00:05]} Kf6 {[%emt 0:00:10]} 29. Qc6 {[%emt 0:01:46]} Qc7 {[%emt 0:08:42]} 30. Qxc7 {[%emt 0:02:01]} Nxc7 {[%emt 0:00:02]} 31. Nc4 {[%emt 0:00:52]} b5 {[%emt 0:00:56]} 32. Na3 {[%emt 0:00:25]} Nd5 {[%emt 0:02:45]} 33. Nxb5 {[%emt 0:00:10]} Nxb4 {[%emt 0:00:04]} 34. Nd4 {[%emt 0:01:21]} g5 {[%emt 0:00:38]} 35. f3 {[%emt 0:00:27]} exf3+ {[%emt 0:01:10]} 36. Kxf3 {[%emt 0:00:13]} Nd3 {[%emt 0:01:02]} 37. g4 {[%emt 0:00:50]} f4 {[%emt 0:02:15]} 38. exf4 {[%emt 0:00:17]} Nxf4 {[%emt 0:00:09]} 39. Kg3 {[%emt 0:00:50]} h5 {[%emt 0:00:40]} 40. gxh5 {[%emt 0:00:07]} Nxh5+ {[%emt 0:00:06]} 41. Kg4 {[%emt 0:30:07]} Nf4 {[%emt 0:30:08]} 42. h4 {[%emt 0:00:15]} gxh4 {[%emt 0:00:02]} 43. Kxh4 {[%emt 0:00:06]} 1/2-1/2